Cogmind - Beta 16 --- EXPLORER MODE // 2026.01.08 @ 10:55:24 Player: K.K.Y. Result: Destroyed by B-75 Beast with Heavy Machine Gun Performance ------------- Evolutions (5) 2500 Regions Visited (6) 1200 Robots Destroyed (135) 675 Value Destroyed (5294) 5294 Prototype IDs (28) 560 Alien Tech Used (0) 0 Bonus (2286) 2286 TOTAL SCORE: 12515 Bonus ------- Follower Combat Kills 286 Delivered SUBCON Basin 2000 Cogmind --------- Core Integrity 0/1000 Matter 300/300 Energy 100/100 System Corruption 9% Temperature Cool (12) Movement Core (1500) Ox29 Location -5/Factory Parts ------- > --- POWER (2) -------- (None) > --- PROPULSION (5) --- (None) > --- UTILITY (9) ------ Huge Storage Unit Advanced Sensor Array Advanced Terrain Scan Processor Graphene Brace Hacking Suite Tech Extrapolator > --- WEAPON (2) ------- Power Sword Lance (fused) > --- INVENTORY (25) --- Improved Deuterium Engine Advanced Heat Sink Advanced Heat Sink Advanced Heat Sink Advanced Heat Sink Machine Analyzer Improved Sensor Array IFF Parser Advanced Recoil Stabilizer Stasis Canceller Advanced ECM Suite Improved Light Armor Plating Improved Medium Armor Plating Improved Medium Armor Plating Graphene Brace Advanced Shield Generator Force Field Advanced Hacking Suite Improved Component Analysis Suite Improved Corruption Screen Improved Remote Datajack Improved Remote Datajack Improved Plasma Cutter Multitool Enhanced Flamer Peak State ------------ > --- POWER ------------ Neutrino Core Meta Core > --- PROPULSION ------- Spiked Treads Armored Medium Treads Heavy Treads Improved Heavy Siege Treads > --- UTILITY ---------- Advanced Cooling System Huge Storage Unit Advanced Terrain Scan Processor Improved Medium Armor Plating Graphene Brace Advanced Shield Generator System Shield System Shield Tech Extrapolator > --- WEAPON ----------- Proton Cannon Heavy Ion Cannon Gauss Rifle > --- INVENTORY -------- Improved Deuterium Engine Armored Medium Treads Heavy Treads Machine Analyzer Improved Sensor Array IFF Parser Advanced Recoil Stabilizer Stasis Canceller Advanced ECM Suite Graphene Brace Advanced Shield Generator Force Field Advanced Hacking Suite Improved Component Analysis Suite Improved Corruption Screen Tesla Rifle Variable Charge Gun Enhanced Gauss Cannon Improved Remote Datajack Improved Plasma Cutter Multitool Enhanced Flamer Power Sword Lance [Rating: 121] Favorites ----------- Power Meta Core Engine Heavy Ion Engine Power Core Meta Core Propulsion Spiked Treads Treads Spiked Treads Utility Terrain Scan Processor Device Improved Terrain Scanner Storage Light Humpback Processor Terrain Scan Processor Hackware System Shield Protection Improved Medium Armor Plating Weapon Subdweller Beam Cannon Energy Gun Medium Laser Energy Cannon Subdweller Beam Cannon Ballistic Gun Gauss Rifle Ballistic Cannon Enhanced Gauss Cannon Special Weapon Mining Laser Slashing Weapon Power Sword Piercing Weapon Lance Build | -11 -10 -10 -10 -7 -7 -5 ------- Run | Yrd Mat Min Sub Rec Scr Fac Slots Evolved 11 | . 1 . . . . 10 Power 1 | . . . . . . 1 Propulsion 3 | . . . . . . 3 Utility 7 | . 1 . . . . 6 Weapon . | . . . . . . . Parts Attached 74 | 6 9 . 9 2 2 46 Power 11 | 1 1 . 1 . . 8 Engine 4 | 1 1 . . . . 2 Core 7 | . . . 1 . . 6 Reactor . | . . . . . . . Propulsion 17 | 2 2 . 4 1 . 8 Treads 17 | 2 2 . 4 1 . 8 Leg . | . . . . . . . Wheel . | . . . . . . . Hover . | . . . . . . . Flight . | . . . . . . . Utility 27 | 1 3 . 1 . . 22 Device 12 | . 2 . . . . 10 Storage 4 | 1 . . 1 . . 2 Processor 3 | . 1 . . . . 2 Hackware 6 | . . . . . . 6 Protection 2 | . . . . . . 2 Artifact . | . . . . . . . Weapon 19 | 2 3 . 3 1 2 8 Energy Gun 5 | 2 1 . . . . 2 Energy Cannon 6 | . 1 . 2 . 2 1 Ballistic Gun 3 | . . . . 1 . 2 Ballistic Cannon 1 | . . . . . . 1 Launcher . | . . . . . . . Special Weapon 2 | . 1 . 1 . . . Impact Weapon . | . . . . . . . Slashing Weapon 1 | . . . . . . 1 Piercing Weapon 1 | . . . . . . 1 Special Melee Weapon . | . . . . . . . Unidentified Prototypes 4 | . 1 . . . . 3 Parts Lost 29 | . . . 1 . . 28 Power 4 | . . . . . . 4 Propulsion 7 | . . . . . . 7 Utility 10 | . . . . . . 10 Weapon 8 | . . . 1 . . 7 Highest Loss Streak 11 | . . . 1 . . 11 To Critical Strikes . | . . . . . . . Average Backups 15 | 2 8 10 10 14 24 24 Power 1 | . 2 2 2 2 2 1 Propulsion 1 | . . 2 1 . . 1 Utility 7 | 1 2 3 3 7 14 13 Weapon 3 | . 2 3 1 3 6 5 Tool/Special . | . . . . . . . Unused Backups 55 | . 2 . 2 5 3 43 Power 3 | . . . . 1 . 2 Propulsion 3 | . 1 . 1 1 . . Utility 30 | . 1 . . 2 1 26 Weapon 15 | . . . 1 1 2 11 Tool/Special 4 | . . . . . . 4 Average Slot Usage (%) 87 | . 91 100 91 82 90 80 Engine 4 | . 11 12 7 . . . Core 5 | . . . 3 9 9 7 Treads 23 | . 24 25 24 27 27 18 Device 10 | . 11 12 10 9 9 10 Storage 8 | . 11 12 10 9 9 4 Processor 9 | . 6 12 10 9 9 9 Hackware 3 | . . . . . . 12 Energy Gun 2 | . 12 . 4 . . . Energy Cannon 12 | . 8 12 16 18 18 7 Ballistic Gun 1 | . . . . 1 9 3 Special Weapon 1 | . 2 12 1 . . . Peak Build Rating 121 | 6 14 14 49 50 49 121 Average Rating 46 | 4 12 14 21 42 46 96 On Entrance 25 | . 5 14 14 49 44 49 Avg Prop Armor Cover (%) . | . . . . . . . Naked Turns . | . . . . . . . Heaviest Build 135 | 9 24 23 72 67 67 135 Greatest Support 192 | 40 40 40 60 68 68 192 Greatest Overweight (x) 31 | . 3 . 1 1 . 31 Average Overweight (x) . | . . . . . . . Largest Inventory Capacity 25 | 10 10 10 25 25 25 25 Average Capacity 18 | 5 9 10 14 25 25 24 Most Carried 25 | 5 10 10 25 25 25 25 Average Carried 17 | 2 8 10 11 21 24 24 Final Capacity 25 | 5 10 10 25 25 25 25 Final Carried 25 | 4 10 10 25 25 25 25 Class Distribution -------------------- 64% | Hacker-Mutant 9% | Commander-Skirmisher 8% | Commander-Mutant 7% | Wizard-Skirmisher 6% | Wizard-Tank 3% | Hacker-Tank Dominant Class ---------------- Hacker-Mutant | -10/Materials Hacker-Mutant | -10/Mines Hacker-Mutant | -10/Subcaves Commander-Mutant | -7/Recycling Commander-Skirmisher | -7/Scraptown Hacker-Mutant | -5/Factory Resources | -11 -10 -10 -10 -7 -7 -5 ----------- Run | Yrd Mat Min Sub Rec Scr Fac Matter Collected 2271 | 270 200 . 130 20 4 1647 Remotely . | . . . . . . . Salvage Created 6353 | 123 481 22 557 242 . 4928 Parts 347 | 13 36 2 32 11 . 253 Haulers Intercepted 3 | . 2 . . . . 1 Recyclers Shooed 7 | . . . . . . 7 Parts Field Recycled . | . . . . . . . Retrieved Matter . | . . . . . . . Parts Self-Destructed . | . . . . . . . Prevented . | . . . . . . . Parts Restored . | . . . . . . . Kills | -11 -10 -10 -10 -7 -7 -5 ------- Run | Yrd Mat Min Sub Rec Scr Fac Combat Hostiles Destroyed 100 | . 9 2 15 2 . 72 Melee 4 | . . . . . . 4 Guns 32 | . 7 . 2 . . 23 Cannons 61 | . 1 2 13 2 . 43 AOE 1 | . . . . . . 1 Classes Destroyed 17 | 3 5 . 3 . . 6 Worker 4 | 2 . . . . . 2 Builder 5 | . 2 . . . . 3 Tunneler 3 | 2 1 . . . . . Hauler 3 | . 2 . . . . 1 Recycler 6 | 1 . . . 2 . 3 Mechanic 2 | . . . . . . 2 Operator 1 | . . . . . . 1 Watcher 11 | . 3 . . . . 8 Swarmer 23 | . 4 . 4 . . 15 Grunt 32 | . 5 2 1 . . 24 Brawler 1 | . . . . . . 1 Duelist 1 | . . . . . . 1 Sentry 10 | . . . 1 2 . 7 Hunter 5 | . . . . . . 5 Programmer 19 | . . . . . . 19 Artisan 1 | . . . 1 . . . Subdweller 9 | . . . 9 . . . Best Kill Streak 11 | 2 5 2 2 2 . 11 Combat Bots Only 11 | . 5 2 2 1 . 11 Max Kills in Single Turn 3 | 1 1 1 1 1 . 3 Gunslinging . | . . . . . . . Exploded 1 | . . . . . . 1 Melee 1 | . . . . . . 1 Uniques/NPCs Destroyed . | . . . . . . . Combat | -11 -10 -10 -10 -7 -7 -5 -------- Run | Yrd Mat Min Sub Rec Scr Fac Hostile Shots Fired 945 | . 25 7 44 33 . 836 Missed 273 | . 3 4 12 9 . 245 Hits 672 | . 22 3 32 24 . 591 Melee 3 | . . . . . . 3 Projectile 669 | . 22 3 32 24 . 588 Critical Strikes 16 | . 1 . 1 . . 14 Actively Blocked 13 | . . . . . . 13 Part Disruptions 1 | . . . . . . 1 Damage Taken 7442 | . 140 29 398 90 . 6785 Core 1097 | . 20 . 64 6 . 1007 Absorbed by Shields 402 | . . . . 21 . 381 Ignored by Resistances 4655 | . 94 18 215 85 . 4243 Regen/Repaired (Parts) 614 | . . . . . . 614 Core Remaining (%) 82 | 100 . . . . 64 . Volleys Fired 323 | 6 43 12 49 8 . 205 Largest 3 | 2 2 2 2 3 . 3 Hottest 300 | 100 160 160 160 188 . 300 Shots Fired 700 | 12 80 19 83 17 . 489 Gun 279 | 12 40 . 17 1 . 209 Cannon 404 | . 31 12 65 16 . 280 Launcher . | . . . . . . . Special 17 | . 9 7 1 . . . Kinetic 187 | . . . . 1 . 186 Thermal 340 | 12 80 19 83 16 . 130 Explosive . | . . . . . . . Electromagnetic 173 | . . . . . . 173 Robot Hit Streak 44 | 5 12 18 38 15 . 44 Robot Miss Streak 4 | 1 3 . 1 2 . 4 Penetration Max 1 | . . . . . . 1 Secondary Targets 2 | . 1 . . . . 1 Max Gunslinging Chain 1 | . 1 . . . . 1 Shots Hit Robots 517 | 6 43 7 53 11 . 397 Core Hits 227 | 6 23 3 23 5 . 167 Critical Kills 4 | . . . . . . 4 Critical Parts Destroyed 7 | . . . . . . 7 Critical Strikes 30 | . 3 . 1 . . 26 Burn 4 | . 3 . 1 . . . Meltdown 1 | . . . . . . 1 Destroy 10 | . . . . . . 10 Blast 10 | . . . . . . 10 Corrupt 2 | . . . . . . 2 Sever 3 | . . . . . . 3 Melee Attacks 19 | . . . . . . 19 Impact . | . . . . . . . Slashing 17 | . . . . . . 17 Piercing 2 | . . . . . . 2 Sneak Attacks 3 | . . . . . . 3 Combat Hostiles . | . . . . . . . Follow-up Attacks 2 | . . . . . . 2 Damage Inflicted 13441 | 75 620 142 933 332 . 11339 Guns 4258 | 75 351 . 163 . . 3669 Cannons 7671 | . 245 70 746 332 . 6278 Explosions 634 | . . . . . . 634 Melee 758 | . . . . . . 758 Ramming . | . . . . . . . Kinetic 3716 | . . . . . . 3716 Thermal 5704 | 75 620 142 933 332 . 3602 Explosive 93 | . . . . . . 93 Electromagnetic 3170 | . . . . . . 3170 Impact . | . . . . . . . Slashing 699 | . . . . . . 699 Piercing 59 | . . . . . . 59 Highest Corruption 9 | . . . . . . 9 Average Corruption 4 | . . . . . . 4 Corruption Purged 5 | . . . . . . 5 Corruption Blocked . | . . . . . . . Effects 119 | . . . . . . 119 Message Errors 30 | . . . . . . 30 Matter Fused 23 | . . . . . . 23 Heat Flow Errors 16 | . . . . . . 16 Energy Discharges 15 | . . . . . . 15 Parts Rejected 3 | . . . . . . 3 Parts Fused 2 | . . . . . . 2 Data Loss (minor) 10 | . . . . . . 10 Data Loss (major) 5 | . . . . . . 5 Misfires 7 | . . . . . . 7 Alerts 4 | . . . . . . 4 Weapon Failures 4 | . . . . . . 4 Overload Shots 4 | . . . . . . 4 Overflow Damage 312 | . . . 8 2 . 302 Projectiles 161 | . . . 8 2 . 151 Explosions 89 | . . . . . . 89 Melee 62 | . . . . . . 62 Knockbacks 9 | . . . . . . 9 Impact . | . . . . . . . Kinetic 9 | . . . . . . 9 Secondary . | . . . . . . . Self-Inflicted Damage 137 | . . . . . . 137 Shots 3 | . . . . . . 3 Rammed . | . . . . . . . Targets Rammed . | . . . . . . . Kicked . | . . . . . . . Crushed . | . . . . . . . Highest Temperature 548 | 78 258 191 117 326 . 548 Average Temperature 87 | 33 86 86 30 162 . 91 Received Heat Transfer 2629 | . 108 27 117 36 . 2341 Effects 1 | . . . . . . 1 Matter Decay 1 | . . . . . . 1 Siege Activations . | . . . . . . . Martial Activations . | . . . . . . . Shielding Activations . | . . . . . . . Robots Disrupted . | . . . . . . . Combat Hostiles . | . . . . . . . Robots Corrupted . | . . . . . . . Combat Hostiles . | . . . . . . . Parts Fried 10 | . . . . . . 10 Impact Corruptions . | . . . . . . . Robots Melted 2 | . 1 . . . . 1 Combat Hostiles 2 | . 1 . . . . 1 Parts Melted 28 | . 8 1 7 . . 12 Heat Transferred 9051 | 222 1826 298 2011 444 . 4250 Parts Sabotaged . | . . . . . . . Parts Stolen . | . . . . . . . Parts Stripped . | . . . . . . . Power Chain Reactions 4 | . . . . . . 4 Alert | -11 -10 -10 -10 -7 -7 -5 ------- Run | Yrd Mat Min Sub Rec Scr Fac Maximum Alert Level . | . . . . . . . Low Security (%) 100 | 100 100 100 . 100 . 100 Level 1 . | . . . . . . . Level 2 . | . . . . . . . Level 3 . | . . . . . . . Level 4 . | . . . . . . . Level 5 . | . . . . . . . High Security . | . . . . . . . Max Security . | . . . . . . . Peak Influence 197 | 10 96 40 . 30 . 197 Initial . | . . . . . . . Average 11 | 1 8 . . . . 22 Influence Increases 3179 | 25 346 69 262 153 . 2324 Destroy 0b10 Robot/C 1980 | . 180 40 200 60 . 1500 Destroy 0b10 Robot/NC 180 | 25 40 . . 10 . 105 Destroy Leader 428 | . 50 10 20 . . 348 Allied During Kill 32 | . . 5 12 4 . 11 Successful Hack 243 | . 67 10 . 72 . 94 Disable Machine 48 | . 4 . . 4 . 40 Destroy Structure 148 | . 5 4 . 3 . 136 Lose Combat Pursuer 120 | . . . 30 . . 90 Influence Decreases 3169 | 25 346 69 262 153 . 2314 Time Decay 2957 | 25 346 69 262 147 . 2108 Lost Part 170 | . . . . . . 170 Lost Ally 42 | . . . . 6 . 36 Squads Dispatched 22 | . 1 . . . . 21 Investigation 9 | . 1 . . . . 8 Extermination 10 | . . . . . . 10 Reinforcement 3 | . . . . . . 3 Assault . | . . . . . . . Garrison . | . . . . . . . Intercept . | . . . . . . . Searches Triggered . | . . . . . . . Construction Impeded 2 | . . . . . . 2 Haulers Reinforced . | . . . . . . . Active Scanning Responses . | . . . . . . . Cargo Convoy Interrupts . | . . . . . . . Stealth | -11 -10 -10 -10 -7 -7 -5 --------- Run | Yrd Mat Min Sub Rec Scr Fac Distress Signals 6 | . 2 . . . . 4 Communications Jammed . | . . . . . . . Distress Signals . | . . . . . . . Times Spotted 140 | . 16 2 21 3 . 98 Peak Tracking Total 8 | . 3 2 4 2 . 8 Tactical Retreats 8 | . . . 2 . . 6 Traps | -11 -10 -10 -10 -7 -7 -5 ------- Run | Yrd Mat Min Sub Rec Scr Fac Traps Triggered 8 | . 4 . 1 . . 3 Indirectly . | . . . . . . . Trap Hack Attempts . | . . . . . . . Triggered . | . . . . . . . Disarmed . | . . . . . . . Reprogrammed 4 | . 4 . . . . . Reused . | . . . . . . . Traps Extracted . | . . . . . . . Installed . | . . . . . . . Triggered . | . . . . . . . Machines | -11 -10 -10 -10 -7 -7 -5 ---------- Run | Yrd Mat Min Sub Rec Scr Fac Machines Disabled 14 | . 1 . 2 1 . 10 Max in Single Turn 4 | . 1 . 1 1 . 4 Garrison Access 3 | . . . . . . 3 Machines Repaired . | . . . . . . . Machines Dismantled . | . . . . . . . Machines Sabotaged . | . . . . . . . Overloaded Fab Kills . | . . . . . . . Hacking | -11 -10 -10 -10 -7 -7 -5 --------- Run | Yrd Mat Min Sub Rec Scr Fac Machines Accessed 51 | . 9 1 3 13 . 25 Terminals 28 | . 8 1 . 6 . 13 Fabricators 3 | . . . . . . 3 Repair Stations 2 | . . . . . . 2 Recycling Units 9 | . 1 . . 7 . 1 Scanalyzers 3 | . . . . . . 3 Garrison Access 3 | . . . . . . 3 Total Hacks 201 | . 33 9 4 29 . 126 Successful 134 | . 20 8 4 23 . 79 Failed 67 | . 13 1 . 6 . 47 Catastrophic 7 | . . . . . . 7 Database Lockouts . | . . . . . . . Manual 83 | . 29 9 . 15 . 30 Terminals 111 | . 29 9 . 12 . 61 Fabricators 21 | . . . . . . 21 Repair Stations 10 | . . . . . . 10 Recycling Units 22 | . 4 . . 17 . 1 Scanalyzers 29 | . . . . . . 29 Garrison Access 4 | . . . . . . 4 Terminal Hacks 38 | . 9 3 4 4 . 18 Record 1 | . . . 1 . . . Part Schematic 11 | . . . . 4 . 7 Robot Schematic 1 | . . . . . . 1 Robot Analysis 1 | . 1 . . . . . Prototype ID Bank 7 | . 5 . . . . 2 Open Door 1 | . . . 1 . . . Emergency Access Points 1 | . . . . . . 1 Alert Level 1 | . . . . . . 1 Locate Traps 5 | . 1 . . . . 4 Reprogram Traps 2 | . 2 . . . . . Maintenance Status 1 | . . 1 . . . . Security Status 1 | . . 1 . . . . Transport Status 1 | . . 1 . . . . Recall Investigation 1 | . . . . . . 1 Zone Layout 1 | . . . . . . 1 Proto ID Catalog 1 | . . . 1 . . . Release Object 1 | . . . 1 . . . Fabricator Hacks 11 | . . . . . . 11 Load Schematic 6 | . . . . . . 6 Build 5 | . . . . . . 5 Repair Station Hacks 8 | . . . . . . 8 Scan Component 4 | . . . . . . 4 Repair 4 | . . . . . . 4 Recycling Unit Hacks 8 | . 1 . . 6 . 1 Retrieve Components 8 | . 1 . . 6 . 1 Scanalyzer 24 | . . . . . . 24 Insert Component 10 | . . . . . . 10 Analyze 14 | . . . . . . 14 Garrison Access Hacks 3 | . . . . . . 3 Seal Access 3 | . . . . . . 3 Unauthorized Hacks 42 | . 10 5 . 13 . 14 Terminals 33 | . 8 5 . 6 . 14 Track 1 | . . 1 . . . . Assimilate 4 | . . 1 . . . 3 Botnet 26 | . 8 1 . 6 . 11 Detonate 1 | . . 1 . . . . Operators 1 | . . 1 . . . . Fabricators . | . . . . . . . Repair Stations . | . . . . . . . Recycling Units 9 | . 2 . . 7 . . Reject 8 | . 1 . . 7 . . Mask 1 | . 1 . . . . . Scanalyzers . | . . . . . . . Garrison Access . | . . . . . . . Data Cores Recovered 1 | . . . . . . 1 Used 1 | . . . . . . 1 Hacking Detections 36 | . 9 1 . 7 . 19 Full Trace Events 8 | . 1 . . . . 7 Feedback Events . | . . . . . . . Feedback Blocked . | . . . . . . . Robot Schematics Acquired 1 | . . . . . . 1 Robots Built . | . . . . . . . Authchips . | . . . . . . . Time . | . . . . . . . Total Robot Build Rating . | . . . . . . . Part Schematics Acquired 33 | . . . . 4 . 29 Parts Built 6 | . . . . . . 6 Authchips . | . . . . . . . Time 219 | . . . . . . 219 Total Part Build Rating 29 | . . . . . . 29 Part Studies Acquired . | . . . . . . . Parts Repaired 4 | . . . . . . 4 Time 165 | . . . . . . 165 Parts Recycled . | . . . . . . . Recycled Matter . | . . . . . . . Retrieved Matter . | . . . . . . . Retrieved Components 37 | . 9 . . 18 . 10 Parts Scanalyzed 10 | . . . . . . 10 Part Schematics Acquired 10 | . . . . . . 10 Parts Damaged . | . . . . . . . Bothacking | -11 -10 -10 -10 -7 -7 -5 ------------ Run | Yrd Mat Min Sub Rec Scr Fac Used RIF Installer . | . . . . . . . Robots Hacked . | . . . . . . . Non-combat . | . . . . . . . Combat . | . . . . . . . Robot Hacks Applied . | . . . . . . . Relay Couplers Released . | . . . . . . . Fabnet Peak Effective % . | . . . . . . . Robots Rewired 10 | . . . . 10 . . Allies Hacked . | . . . . . . . Hacks Repelled . | . . . . . . . Allies | -11 -10 -10 -10 -7 -7 -5 -------- Run | Yrd Mat Min Sub Rec Scr Fac Total Allies 15 | . . 5 . 10 . . Largest Group 11 | . . 5 5 11 10 10 Highest-Rated Group 205 | . . 85 89 205 189 189 Highest-Rated Ally 40 | . . 31 31 40 40 40 Total Orders . | . . . . . . . Ally Attacks 98 | . . 1 72 11 . 14 Total Damage 1816 | . . 14 961 360 . 481 Kills 13 | . . . 8 1 . 4 Allies Corrupted 1 | . . . . . . 1 Allies Melted . | . . . . . . . Intel | -11 -10 -10 -10 -7 -7 -5 ------- Run | Yrd Mat Min Sub Rec Scr Fac Active Infowar (turns) 17994 | . 1668 2206 6454 3794 994 2878 Sensors 765 | . . . . . . 765 IFF 1 | . . . . . . 1 Terrain 17225 | . 1665 2206 6454 3794 994 2112 Structural 24 | . 24 . . . . . Traps 503 | . . . . . . 503 Robot Analysis Total 1 | . 1 . . . . . Derelict Logs Recovered 3 | . . . 1 . 2 . Drone Launches . | . . . . . . . Drone Recoveries . | . . . . . . . Exploration | -11 -10 -10 -10 -7 -7 -5 ------------- Run | Yrd Mat Min Sub Rec Scr Fac Turns Passed 21471 | 120 1754 2206 6460 3794 994 6143 Spaces Moved 8716 | 68 673 545 3065 1240 576 2549 Core 34 | 24 5 . . . . 5 Treads 8682 | 44 668 545 3065 1240 576 2544 Legs . | . . . . . . . Wheels . | . . . . . . . Hover . | . . . . . . . Flight . | . . . . . . . Fastest Speed 50 | 50 160 160 160 160 160 160 Average Speed 182 | 121 160 160 181 243 160 172 Slowest Speed 1600 | 160 200 160 260 260 160 1600 Overloaded Moves . | . . . . . . . Propulsion Burnouts . | . . . . . . . Robots Hopped . | . . . . . . . Potential Cave-ins 4 | . . . 4 . . . Cave-ins Triggered . | . . . . . . . Exploration Rate (%) 73 | 5 100 96 96 99 50 65 Regions Visited 6 Branch Regions 4 Pre-discovered Areas 3 | . . 1 2 . . . Known Exits Taken 6 | 1 1 1 1 1 1 . Unknown Exits Taken . | . . . . . . . Scrap Searched 7 | . . 1 3 . 3 . Spaces Dug 19 | . 6 4 7 . . 2 Terrain Destroyed 104 | . 6 4 8 2 . 84 Melee 1 | . . . . . . 1 Projectile 39 | . 6 4 8 2 . 19 AOE 64 | . . . . . . 64 Terrain Rammed . | . . . . . . . Walls Destroyed . | . . . . . . . Machines Disabled . | . . . . . . . Actions | -11 -10 -10 -10 -7 -7 -5 --------- Run | Yrd Mat Min Sub Rec Scr Fac Total 13596 | 94 1248 1846 3870 2002 651 3885 Wait 4181 | 3 494 1289 725 676 64 930 Move 8711 | 67 672 545 3064 1239 575 2549 Hop . | . . . . . . . Pick Up 117 | 9 12 . 6 22 5 63 Fast Attach 48 | 1 8 . 4 1 . 34 Attach 29 | 6 5 . 1 . . 17 Detach 6 | 1 2 . 1 . . 2 Swap 39 | . 7 . 8 1 2 21 Drop 77 | 1 5 . 11 8 5 47 Fire 323 | 6 43 12 49 8 . 205 Melee 17 | . . . . . . 17 Ram . | . . . . . . . Kick . | . . . . . . . Crush . | . . . . . . . Escape Stasis . | . . . . . . . Rewire 48 | . . . 1 47 . . Trap . | . . . . . . . Miscellaneous . | . . . . . . . Route ------- -11/Scrapyard -10/Materials (discovered 5 exits: *Mat x3 / *Min / *Sub) -10/Mines (discovered 4 exits: *Mat x2 / *Exi / *Sub) -10/Subcaves (discovered 4 exits: *Mat x2 / *Rec / *Scr) -7/Recycling (discovered 2 exits: *Fac / *Scr) -7/Scraptown -5/Factory (discovered 5 exits: *Fac x3 / *Upp x2) History --------- Turn | Location | Event 13 | -11/Scrapyard | Identified exit to Materials 13 | -11/Scrapyard | Discovered exit to Materials (range 15) 121 | -11/Scrapyard | Entered Materials 121 | -10/Materials | Evolved 1 slot: Utility x1 317 | -10/Materials | Build established: Hacker-Mutant 793 | -10/Materials | Identified exit to Materials 793 | -10/Materials | Discovered exit to Materials (range 8) 1067 | -10/Materials | Identified exit to Mines 1067 | -10/Materials | Discovered exit to Mines (range 13) 1252 | -10/Materials | Identified exit to Subcaves 1252 | -10/Materials | Discovered exit to Subcaves (range 11) 1454 | -10/Materials | Discovered exit to Materials (range 12) 1652 | -10/Materials | Discovered exit to Materials (range 10) 1875 | -10/Materials | Entered Mines 1952 | -10/Mines | Discovered exit to Subcaves (range 10) 2019 | -10/Mines | Assisted by bots powering up and referring to "LRC-V3" 2045 | -10/Mines | Discovered exit to Materials (range 15) 2161 | -10/Mines | Learned location of Storage (-7) 2451 | -10/Mines | Found a hidden stash of uninstalled traps 2507 | -10/Mines | Discovered exit to Materials (range 5) 2645 | -10/Mines | Deemed a non-threat by the Exiles lab entrance 2645 | -10/Mines | Identified exit to Exiles 2645 | -10/Mines | Discovered exit to Exiles (range 5) 4081 | -10/Mines | Entered Subcaves 4081 | -10/Subcaves | Accompanied by 5 allies 4082 | -10/Subcaves | Approached by a straggling Scientist 4086 | -10/Subcaves | Led the pair of lost Derelicts to an unsafe place 4116 | -10/Subcaves | Learned location of Zion (-6) 4116 | -10/Subcaves | Met a Zionite searching for "candidates" 5097 | -10/Subcaves | A swath of the cavern ceiling suddenly collapsed 6493 | -10/Subcaves | Identified exit to Recycling 6493 | -10/Subcaves | Discovered exit to Recycling (range 11) 6646 | -10/Subcaves | Identified exit to Materials 6646 | -10/Subcaves | Discovered exit to Materials (range 11) 6707 | -10/Subcaves | Shifting Twisted Machinery released Sub. Shrapnel Launcher 6767 | -10/Subcaves | Discovered exit to Materials (range 10) 7024 | -10/Subcaves | Lost 3 allies 8161 | -10/Subcaves | Visited 4L-MR0's lab 8177 | -10/Subcaves | Found Meta Core 8179 | -10/Subcaves | Attached Meta Core, gained temporary slots: Propulsion, Utility, Weapon 8648 | -10/Subcaves | Ambushed by Subdweller buried in earth 9183 | -10/Subcaves | Shifting Twisted Machinery released Battle Rifle 9190 | -10/Subcaves | Shifting Twisted Machinery released Battle Rifle 10203 | -10/Subcaves | Found SUBCON Basin 10541 | -10/Subcaves | Entered Recycling 10541 | -7/Recycling | Accompanied by 1 ally 11538 | -7/Recycling | Identified exit to Factory 11538 | -7/Recycling | Discovered exit to Factory (range 5) 12227 | -7/Recycling | Scanned before Scraplab entrance 12242 | -7/Recycling | Identified exit to Scraptown 12242 | -7/Recycling | Discovered exit to Scraptown (range 16) 12260 | -7/Recycling | Build established: Commander-Mutant 12263 | -7/Recycling | Entered Scraplab 14050 | -7/Recycling | Build established: Commander-Skirmisher 14335 | -7/Recycling | Entered Scraptown 14335 | -7/Scraptown | Accompanied by 10 allies 14589 | -7/Scraptown | Heard Great Nut preacher, LISTEN AND RECITE! 14712 | -7/Scraptown | Scanned Subdweller tech in exchange for log data 14715 | -7/Scraptown | Learned Research machine intel 14773 | -7/Scraptown | Discovered exit to Factory (range 16) 15059 | -7/Scraptown | Visited The Evicted 15184 | -7/Scraptown | Visited Assassins FH 15329 | -7/Scraptown | Entered Factory 15329 | -5/Factory | Accompanied by 10 allies 15329 | -5/Factory | Evolved 10 slots: Power x1, Propulsion x3, Utility x6 15800 | -5/Factory | Fabricated System Shield (x1) 15845 | -5/Factory | Fabricated System Shield (x1) 16066 | -5/Factory | Lost 6 allies 16147 | -5/Factory | Build established: Wizard-Skirmisher 16308 | -5/Factory | Tech Extrapolator generated special schematic: Deep Structural Scanner 16518 | -5/Factory | Tech Extrapolator generated special schematic: Energy Deflector 17119 | -5/Factory | Tech Extrapolator generated special schematic: Machine Rigger 17172 | -5/Factory | Identified exit to Upper Caves 17172 | -5/Factory | Discovered exit to Upper Caves (range 16) 17355 | -5/Factory | Identified exit to Factory 17355 | -5/Factory | Discovered exit to Factory (range 14) 17739 | -5/Factory | Build established: Wizard-Tank 17975 | -5/Factory | Discovered exit to Upper Caves (range 5) 18290 | -5/Factory | Fabricated Graphene Brace (x2) 18358 | -5/Factory | Fabricated Imp. Heavy Siege Treads (x1) 18389 | -5/Factory | Fabricated Huge Storage Unit (x1) 18456 | -5/Factory | Repaired Proton Cannon 18490 | -5/Factory | Repaired Hvy. Treads 19033 | -5/Factory | Discovered exit to Factory (range 8) 19097 | -5/Factory | Build established: Hacker-Tank 19706 | -5/Factory | Lost 4 parts (1p1n1u1w) 19744 | -5/Factory | Destroyed 11 combat bots 19957 | -5/Factory | Build established: Hacker-Mutant 20201 | -5/Factory | Lost 11 parts (1p3n4u3w) 20399 | -5/Factory | Discovered exit to Factory (range 12) 20601 | -5/Factory | Core integrity fell below 50% 20934 | -5/Factory | Repaired Adv. Cooling System 20992 | -5/Factory | Repaired Hvy. Treads 21072 | -5/Factory | Spotted B-75 Beast 21411 | -5/Factory | Lost 6 parts (1p3n1u1w) 21435 | -5/Factory | Core integrity fell below 20% 21472 | -5/Factory | Destroyed by B-75 Beast with Heavy Machine Gun Last Messages --------------- 7B. 21446_ K-01 Serf collects debris. 21448_ U-05 Engineer builds a Door. 21450_ K-01 Serf collects debris. 21455_ System corrupted: Lance fused. 21455_ Adv. Cooling System destroyed. 21457_ K-01 Serf collects debris. 21458_ U-05 Engineer builds a Wall. 21460_ K-01 Serf collects debris. 21462_ Knocked back. 21464_ K-01 Serf collects debris. 21468_ Tech Extrapolator generates new schematic "0b10 Decoder Chip [Generic]". Influences: Sensor Array, Imp. Signal Interpreter, Imp. Trap Scanner, Structural Scanner, Machine Analyzer. 21468_ K-01 Serf collects debris. 21471_ U-05 Engineer builds a Wall. 21471_ K-01 Serf collects debris. 21472_ Knocked back. Map ----- +----------------------------------------------------+ | #####?## #### # #?##?####?#? | | ############# # #?##?#?????? | | ##+####################?? | | % ##### ##### | | % ##### " ##??? | | ###+#########% = ##### " " " " T ##??? | | ##?## ##### " " " " " ##?## | | """""" #####[ ##### " " " " #?### | | """""" #### ##### " " " " ####? | | """""" ####T # " " " " #??#? | | """""" ##### # " " " " ##### | | ]##?## + " " " " ##?## | | ##?## ! # " " " " #???# | | [ ##### [% [%# " " " " ##?#? | | ##+############ #### % # #?#?# | | ## ############ #### %#####+############ | | # ############ #### #### | | # ##### / # #### ##?# | | ?# ###?# """ # #### #### | | ?# ##### T" # #### #?#? | | # + """ # #### ##?? | | # ##### # ##?######;;###+### ##?? | | # ##### %# ##### # #### | | # ########+### ##### u########## | | # ####### ## ##### % % ##????#??# | | # ####### + %@ #?#??#?##? | | ## #""""## ######## ######?#?? | | ## #""F"### #########%%= #?##????#? | | ## #"" ### #######?#BB!= ;#?#???#?? | | ## "#""""###BB% ; ##??##?? | | ## [ ? [!+% k ###?#?#??? | | ""= % "########%!% #?#???##?? | | "Y=!** #########! #?##????#? | | ""!![%= "######## #???##???# | | ## """" T#####?################?????#?? | | ## ^ ""%" "## ? ???#?? ??#????? | | ?# % %%"" ### ? ????? ?????????? | | ?# % ### ? ?? ????? ? ????????? | | ## """%% ### """ ""???????????????? | | ## % """" ##? "??"? ?""????????????????? | | ## %%""" ### ""?"" "??????????????????? | | % % #####???#?+?##????????????????? | | %""" ## #?## ? ?????????????????? | | % """" #?? ?# ?? ??????????????????? | | """"% # "???? ??? ?????????????????? | | # """ # ? ??#???????????????? | | """" # ?F??? ?????????????????????? | | ^ """" #??"??#?? ??????????????????? | | """" #??" ?? ? ???????????????????? | | #???? #? ? ??????????????????? | +----------------------------------------------------+ Best States ------------- Heat Dissipation 71 Energy Generation 31 Energy Capacity 395 Matter Stores 300 Matter Capacity 300 Sight Range 16 Robot Scan Range 16 Terrain Scan Range 16 Terrain Scan Density 210 Armor Coverage 225 Resistance: KI 35 Resistance: TH 35 Resistance: EX 35 Resistance: EM 35 Resistance: I 35 Resistance: S 35 Resistance: P 35 Evasion (%) 50 Recoil Reduction 6 Offensive Hacking 30 Defensive Hacking 40 Item Schematics ----------------- Plasma Rifle | -7/Recycling | Hacked Med. Reactive Plating | -7/Recycling | Hacked Hvy. Plasma Cannon | -7/Recycling | Hacked Imp. Kinecellerator | -7/Recycling | Hacked Q-thruster | -5/Factory | Hacked Adv. Shield Generator | -5/Factory | Hacked System Shield | -5/Factory | Scanalyzed Adv. Recalibrator | -5/Factory | Hacked Multitool | -5/Factory | Scanalyzed Huge Storage Unit | -5/Factory | Scanalyzed Deep Structural Scanner | -5/Factory | Extrapolated Imp. Heavy Siege Treads | -5/Factory | Hacked Imp. Point Defense System | -5/Factory | Hacked Energy Deflector | -5/Factory | Extrapolated Graphene Brace | -5/Factory | Hacked Biometal Leg | -5/Factory | Hacked Mak. Coolant Network | -5/Factory | Extrapolated 0b10 Decoder Chip [Skirmisher] | -5/Factory | Extrapolated Machine Rigger | -5/Factory | Extrapolated Mak. Power Source | -5/Factory | Extrapolated Mak. Sword | -5/Factory | Extrapolated Mak. Kinetic Plating | -5/Factory | Extrapolated System Restoration Module | -5/Factory | Scanalyzed IFF Parser | -5/Factory | Scanalyzed Machine Analyzer | -5/Factory | Scanalyzed Imp. Plasma Cutter | -5/Factory | Scanalyzed Adv. Terrain Scan Processor | -5/Factory | Scanalyzed Imp. Corruption Screen | -5/Factory | Scanalyzed Mak. Hacking Suite | -5/Factory | Extrapolated Imp. Component Analysis Suite | -5/Factory | Scanalyzed Mak. Axe | -5/Factory | Extrapolated Mak. Sensor Array | -5/Factory | Extrapolated 0b10 Decoder Chip [Generic] | -5/Factory | Extrapolated Robot Schematics ------------------ Y-64 Sentinel | -5/Factory | Hacked Fabricated ------------ System Shield | x1 | -5/Factory System Shield | x1 | -5/Factory Graphene Brace | x2 | -5/Factory Imp. Heavy Siege Treads | x1 | -5/Factory Huge Storage Unit | x1 | -5/Factory Repaired ---------- Proton Cannon | 23% | -5/Factory Hvy. Treads | 73% | -5/Factory Adv. Cooling System | 6% | -5/Factory Hvy. Treads | 34% | -5/Factory Studied --------- None Alien Tech Used ----------------- None Achievements -------------- None Challenges ------------ None Game ------ Seed VisualFieldGriptreads Manual? 0 Play Time 01:33:50 Cumulative 265.0 hours Start 2026.01.08 @ 09:07:02 End 2026.01.08 @ 10:55:24 Sessions 1 Manual Loads 0 Difficulty Explorer Special Mode None Game No. 413 Rogue 0 Adventurer 0 Explorer 413 Win Type - Total 0 Types 0/0/0/0/0/0/0/0/0/0 Lore% 72 Gallery% 69 Achievement% 54 Wizard Run 0 Options --------- Layout 1 ASCII 0 Keyboard 0 Movement Mouse Keybinds 0 Fullscreen 1 Font 24/Smallcaps Map View 50x35 Zoom Use 0% Tactical HUD 1 Map Filters NONE Filters NONE Steam 1 RUN: 7bfca712-1495-4d87-96b9-bd9779dc9194